bitfinex-derivatives/quotes_ETHF0:USTF0_20250430
["timestamp","ask_amount","ask_price","bid_price","bid_amount"]
[1746018805682,1.41406146,1767.4,1767.3,49.67208]
[1746018805982,0.28274146,1767.4,1767.3,49.67208]
[1746018806184,1.41406146,1767.4,1767.3,49.67208]
[1746018806682,0.28274146,1767.4,1767.3,49.67208]
[1746018806883,1.41406146,1767.4,1767.3,49.67208]
[1746018807383,1.41406146,1767.4,1767.3,46.08638]
[1746018809879,1.41406146,1767.4,1767.0,9.58603]
[1746018809880,1.41457146,1766.6,1766.5,7.3638]
[1746018810086,1.41457146,1766.6,1766.5,4.156]
[1746018810387,1.41457146,1766.6,1766.5,44.956]
[1746018811089,6.32013146,1766.6,1766.2,0.099]
[1746018811284,1.13202,1766.3,1766.2,0.099]
[1746018811483,1.13202,1766.3,1766.2,1.23109]
[1746018811684,1.13202,1766.3,1766.2,42.03109]
[1746018812084,1.13202,1766.3,1766.2,40.899]
[1746018812282,1.41476146,1766.3,1766.2,0.099]
[1746018812485,1.13221,1766.0,1765.9,4.156]
[1746018812685,1.41495146,1766.0,1765.9,44.956]
[1746018812887,4.62275146,1766.0,1765.9,40.8]
[1746018813785,1.41495146,1766.0,1765.9,40.8]
[1746018813986,1.41495146,1766.0,1765.9,45.53248]
[1746018814177,0.28274146,1766.0,1765.7,1.13237]
[1746018814376,0.28274146,1766.1,1765.7,3.6002]
[1746018814580,1.41502146,1765.9,1765.8,1.13228]
[1746018814780,1.13234,1765.8,1765.7,3.6002]
[1746018814988,1.13249,1765.6,1765.5,1.13252]
[1746018815186,1.41523146,1765.6,1765.5,3.6002]
[1746018815585,1.41534146,1765.4,1765.3,7.49253743]
[1746018815889,1.41528146,1765.5,1765.4,1.1326]
[1746018816086,0.28274146,1765.4,1765.3,49.42519743]
[1746018816283,1.41533146,1765.5,1765.3,48.29253743]
[1746018816482,0.28274146,1765.5,1765.4,1.1326]
[1746018816789,1.41517146,1765.7,1765.5,1.1325]
[1746018816989,1.41517146,1765.7,1765.6,3.3457]
[1746018817985,1.41528146,1765.5,1765.4,4.158]
[1746018818187,1.41528146,1765.5,1765.4,3.3457]
[1746018818388,1.1326,1765.4,1765.3,40.8]
[1746018818592,1.1326,1765.4,1765.3,44.1457]
[1746018819286,1.1326,1765.4,1765.3,45.27836]
[1746018819490,0.28274146,1765.5,1765.4,1.1326]
[1746018819688,0.28274146,1765.6,1765.5,1.13254]
[1746018819883,0.28274146,1765.6,1765.5,7.72694]
[1746018820080,0.28274146,1765.6,1765.5,11.31184]
[1746018820286,0.28274146,1765.9,1765.3,3.2078]
[1746018820492,3.2078,1765.5,1765.0,3.5849]
[1746018820689,0.28274146,1765.4,1765.3,1.13264]
[1746018820879,0.28274146,1765.4,1765.3,41.93264]
[1746018821989,1.41534146,1765.4,1765.3,40.8]
[1746018822186,4.89324146,1765.4,1765.3,40.8]
[1746018823496,1.41534146,1765.4,1765.3,40.8]
[1746018823688,1.41534146,1765.4,1765.3,41.93266]
[1746018823881,0.28274146,1765.6,1765.5,1.13254]
[1746018824088,0.28274146,1765.6,1765.4,1.13259]
[1746018824288,1.13259,1765.5,1765.4,1.13259]
[1746018824487,0.28274146,1765.6,1765.3,40.8]
[1746018825198,1.1326,1765.5,1765.1,6.99099]
[1746018825388,1.1326,1765.5,1765.4,1.1326]
[1746018825585,1.13262,1765.4,1765.3,1.13262]
[1746018825996,1.41547146,1765.2,1765.1,5.29174]
[1746018826194,1.41547146,1765.2,1765.1,46.09174]
[1746018827495,0.28274146,1765.2,1765.1,46.09174]
[1746018827887,1.41535146,1765.4,1765.3,1.13266]
[1746018828092,1.13273,1765.2,1765.1,46.09174]
[1746018828292,1.13271,1765.3,1765.2,1.1327]
[1746018828590,1.41547146,1765.2,1765.1,46.09176]
[1746018828799,1.41547146,1765.2,1765.1,44.959]
[1746018829598,5.02587146,1765.2,1765.1,44.959]
[1746018829901,1.13292,1764.9,1764.8,3.2078]
[1746018830398,1.41566146,1764.9,1764.8,44.0078]
[1746018830700,1.13311,1764.6,1764.5,4.152]
[1746018830896,1.13311,1764.6,1764.5,5.28518]
[1746018830897,1.41585146,1764.6,1764.5,5.28518]
[1746018831102,0.28274146,1764.6,1764.5,5.28518]
[1746018831398,1.41600146,1764.4,1764.3,1.13331]
[1746018831596,0.27124201,1764.1,1763.9,3.2078]
[1746018831791,1.13363,1763.8,1763.7,4.34146]
[1746018831993,1.13388,1763.4,1763.3,0.42648973]
[1746018832198,1.13388,1763.4,1763.3,0.01223565]
[1746018832199,1.39362256,1763.4,1763.3,0.01223565]
[1746018832396,9.60142256,1763.4,1763.3,0.01223565]
[1746018832596,9.60142256,1763.4,1763.3,5.65e-06]
[1746018832793,0.25974256,1763.3,1762.9,1.13418]
[1746018832995,0.25974256,1763.2,1762.9,40.8]
[1746018833189,3.46754256,1763.6,1762.9,40.8]
[1746018833388,0.25974256,1763.0,1762.9,4.153]
[1746018833595,0.25974256,1763.0,1762.5,14.85433743]
[1746018833894,3.46754256,1763.2,1762.7,0.0122413]
[1746018834097,0.25974256,1762.9,1762.7,3.3651413]
[1746018834295,0.25974256,1763.0,1762.9,1.13421]
[1746018834597,3.2078,1763.1,1762.9,1.13421]
[1746018834598,1.39341256,1763.8,1763.0,2.83536]
[1746018834796,3.46754256,1763.8,1763.1,3.2078]
[1746018835001,0.25974256,1763.7,1763.4,0.02447546]
[1746018835203,0.25974256,1763.9,1763.7,1.13367]
[1746018835500,0.25974256,1763.7,1763.4,4.56685546]
[1746018835698,1.39349256,1763.7,1763.4,3.43297546]
[1746018835893,1.39356256,1763.5,1763.4,0.02447546]
[1746018836096,0.2475084,1763.0,1762.9,4.154]
[1746018836393,0.23527424,1763.2,1762.9,40.8]
[1746018836601,0.23527424,1763.2,1763.1,1.13408]
[1746018836898,0.23527424,1763.2,1763.0,8.69662]
[1746018836899,1.36931424,1763.2,1763.0,8.69662]
[1746018837098,0.23527424,1763.2,1763.1,1.13408]
[1746018837302,3.6145,1763.4,1763.2,1.13401]
[1746018837303,0.23527424,1763.3,1763.2,1.13401]
[1746018837496,0.23527424,1763.3,1762.8,2.83568]
[1746018837497,1.36928424,1763.2,1763.1,0.01228268]
[1746018837899,6.36928424,1763.2,1763.1,0.01228268]
[1746018838100,9.86928424,1763.2,1763.1,0.01228268]
[1746018838402,1.13431,1762.8,1762.6,3.2078]
[1746018838590,2.8353,1763.1,1762.6,3.2078]
[1746018838591,4.63433,1762.7,1762.6,3.2078]
[1746018838795,3.73527424,1762.7,1762.6,3.2078]
[1746018839190,8.73527424,1762.7,1762.4,40.8]
[1746018839398,6.94307424,1762.7,1762.4,40.81228268]
[1746018839602,3.2078,1762.8,1762.7,1.13433]
[1746018839806,3.44307424,1762.8,1762.4,40.8]
[1746018840097,0.23527424,1762.6,1762.4,44.2461]
[1746018840297,1.36980424,1762.4,1762.3,4.155]
[1746018840502,1.13459,1762.3,1762.2,1.13463]
[1746018840802,1.36983424,1762.4,1762.2,1.13464]
[1746018841008,0.23527424,1762.4,1762.0,44.0078]
[1746018841299,0.23527424,1762.2,1762.0,6.786]
[1746018841499,0.23527424,1762.1,1761.6,3.3743]
[1746018841696,0.23527424,1762.1,1761.5,3.2078]
[1746018841697,0.23527424,1761.6,1761.1,3.2078]
[1746018842004,0.23527424,1761.4,1761.3,1.14752268]
[1746018842191,0.23527424,1761.6,1761.5,1.13511]
[1746018842397,0.23527424,1761.9,1761.8,1.1349]
[1746018842595,0.23527424,1762.0,1761.9,1.13485]
[1746018842797,6.99403,1762.6,1761.9,1.13485]
[1746018842798,3.2078,1762.8,1761.9,10.95628268]
[1746018842992,0.23527424,1763.5,1763.1,1.13408]
[1746018843195,0.23527424,1763.5,1763.4,1.13388]
[1746018843398,3.06989424,1763.5,1762.8,3.2078]
[1746018843598,0.23527424,1763.3,1763.1,0.01226555]
[1746018843993,3.44307424,1763.2,1763.1,0.01226555]
[1746018844196,4.06327424,1763.3,1763.2,1.13401]
[1746018844401,4.06327424,1763.3,1763.2,3.6081]
[1746018844600,12.27107424,1763.3,1763.2,0.01226555]
[1746018844801,0.23527424,1763.2,1762.5,3.2078]
[1746018845108,0.23527424,1763.2,1763.1,1.13408]
[1746018845406,0.23527424,1763.3,1763.2,1.13401]
[1746018845901,0.23527424,1763.3,1763.2,1.14629268]
[1746018846204,0.23527424,1763.5,1763.4,1.13388]
[1746018846407,0.23527424,1763.5,1763.4,1.14616268]
[1746018846698,0.23527424,1763.5,1763.4,0.01228268]
[1746018846997,0.23527424,1763.5,1763.3,4.74201]
[1746018847203,3.2078,1763.6,1763.1,4.586]
[1746018847405,0.23527424,1763.3,1763.0,3.6465]
[1746018847605,1.36935424,1763.1,1763.0,3.6465]
[1746018847802,1.13401,1763.2,1763.1,0.01228268]
[1746018848100,0.23527424,1763.5,1763.1,0.01228268]
[1746018848301,0.23527424,1763.1,1763.0,3.6465]
[1746018848493,0.23527424,1763.1,1763.0,50.16664]
[1746018848696,1.36935424,1763.1,1763.0,3.6465]
[1746018848908,1.13462,1762.3,1762.2,4.586]
[1746018849202,1.36986424,1762.3,1762.2,8.2325]
[1746018849405,0.23527424,1762.5,1762.4,1.13453]
[1746018849599,0.23527424,1762.3,1762.2,9.36714]
[1746018849798,0.23527424,1762.3,1762.2,8.2325]
[1746018849998,0.23527424,1762.6,1762.2,8.24478268]
[1746018850199,0.23527424,1762.8,1762.6,0.01228268]
[1746018850403,0.23527424,1763.0,1762.7,0.01228268]
[1746018850602,0.23527424,1763.1,1763.0,1.14642268]
[1746018850796,0.23527424,1763.4,1763.1,1.13408]
[1746018851009,4.57690424,1763.5,1763.3,1.13392]
[1746018851299,4.57690424,1763.5,1763.4,7.91798268]
[1746018851499,3.44307424,1763.7,1763.4,7.91798268]
[1746018851701,4.57680424,1763.7,1763.4,7.9057]
[1746018852005,1.13378,1763.6,1763.4,9.03956]
[1746018852210,0.23527424,1763.7,1763.6,1.13376]
[1746018852509,0.23527424,1763.8,1763.7,1.13364]
[1746018852805,0.23527424,1763.8,1763.6,7.9057]
[1746018853004,0.23527424,1763.8,1763.7,4.45339]
[1746018853205,0.23527424,1764.0,1763.7,3.3197]
[1746018853512,1.36890424,1763.8,1763.7,3.3197]
[1746018853700,0.23527424,1764.3,1763.6,3.2078]
[1746018853908,0.23527424,1764.2,1763.6,6.5729]
[1746018854104,0.23527424,1763.9,1763.8,1.13359]
[1746018854406,1.13349,1764.1,1763.9,1.13356]
[1746018854609,1.36935424,1763.1,1763.0,3.2078]
[1746018854797,1.13408,1763.1,1763.0,3.2078]
[1746018854997,0.23527424,1763.3,1763.0,5.0]
[1746018855305,0.23527424,1763.3,1762.8,8.3105]
[1746018855699,0.23527424,1763.2,1763.1,1.13403]
[1746018856005,1.36941424,1763.0,1762.9,3.3036]
[1746018856308,0.23527424,1763.3,1762.9,8.1416]
[1746018856503,1.13402,1763.2,1763.0,1.13414]
[1746018856811,0.23527424,1763.3,1763.2,1.13401]
[1746018857211,1.13391,1763.4,1763.2,8.6513]
[1746018857403,1.13391,1763.4,1763.3,4.838]
[1746018857602,1.36905424,1763.6,1763.3,4.838]
[1746018857798,0.23527424,1764.1,1763.4,10.4308]
[1746018858010,0.23527424,1764.1,1763.5,3.2078]
[1746018858206,0.23527424,1764.1,1763.4,13.2655]
[1746018858207,0.23527424,1764.1,1763.8,1.13361]
[1746018858402,1.36877424,1764.0,1763.9,8.4893]
[1746018858604,1.81368109,1764.0,1763.9,8.4893]
[1746018858807,1.81368109,1764.0,1763.9,3.6513]
[1746018859104,1.81368109,1764.0,1763.9,8.4893]
[1746018859810,5.02148109,1764.0,1763.9,3.6513]
[1746018860308,8.47358109,1764.0,1763.9,3.6513]
[1746018860504,8.47358109,1764.0,1763.4,6.7795]
[1746018860505,2.83409,1763.8,1763.4,6.7795]
[1746018860709,1.13376,1763.6,1763.5,4.838]
[1746018861107,1.36903424,1763.6,1763.5,4.838]
[1746018861312,1.36909424,1763.5,1763.4,7.91335]
[1746018861612,1.36909424,1763.5,1763.4,12.75038]
[1746018861816,0.44490685,1763.5,1763.4,12.75038]
[1746018862005,0.44490685,1763.5,1763.4,17.75038]
[1746018862206,0.68018109,1763.5,1763.4,12.75038]
[1746018862811,0.44490685,1763.5,1763.4,12.75038]
[1746018863312,1.36928424,1763.2,1763.1,40.8]
[1746018863809,0.23527424,1763.3,1763.0,8.0448]
[1746018864108,0.68018109,1763.5,1763.4,1.13388]
[1746018864414,1.36909424,1763.5,1763.4,4.837]
[1746018864804,1.81497481,1763.5,1763.4,4.837]
[1746018865208,1.81497481,1763.5,1763.4,8.4464]
[1746018865408,5.02277481,1763.5,1763.4,8.4464]
[1746018865605,5.44982373,1763.5,1763.4,8.4464]
[1746018865811,5.02277481,1763.5,1763.4,8.4464]
[1746018866713,3.65368057,1763.5,1763.4,9.58028]
[1746018867015,0.44588057,1763.5,1763.4,14.58028]
[1746018867402,1.81497481,1763.5,1763.4,13.26188]
[1746018867602,0.23527424,1763.6,1763.5,1.13382]
[1746018867807,0.23527424,1763.6,1763.5,4.78352]
[1746018868007,3.2078,1763.8,1763.7,1.13369]
[1746018868207,0.23527424,1764.0,1763.9,1.13356]
[1746018868407,1.36877424,1764.0,1763.9,5.97156]
[1746018868609,1.36877424,1764.0,1763.9,4.838]
[1746018868916,0.23527424,1762.9,1762.6,3.2078]
[1746018869107,1.36945424,1763.0,1762.9,1.13421]
[1746018869308,0.23527424,1763.0,1762.9,41.93421]
[1746018869613,5.02304497,1763.0,1762.9,4.838]
[1746018870002,3.88890497,1763.0,1762.9,5.97221]
[1746018870205,3.88890497,1763.0,1762.9,46.77221]
[1746018870410,1.81524497,1763.0,1762.9,41.93421]
[1746018870613,0.23527424,1762.8,1762.2,5.97263]
[1746018870914,0.23527424,1762.5,1762.1,3.396]
[1746018871110,1.36980424,1762.4,1762.3,1.13459]
[1746018871316,0.23527424,1762.5,1762.2,45.638]
[1746018871611,1.36976424,1762.5,1762.4,1.13453]
[1746018871813,0.23527424,1762.5,1762.3,3.6049]
[1746018872007,1.36977424,1762.5,1762.3,4.73946]
[1746018872208,1.36977424,1762.5,1762.4,3.6049]
[1746018872613,1.36977424,1762.5,1762.4,8.4429]
[1746018872912,1.81653707,1762.5,1762.4,9.57743]
[1746018873115,0.68203707,1762.5,1762.4,9.57743]
[1746018873309,1.81649707,1762.5,1762.4,8.4429]
[1746018873708,0.68203707,1762.5,1762.4,9.57743]
[1746018874317,0.44676283,1762.5,1762.4,14.57743]
[1746018874611,0.23527424,1762.8,1762.5,2.83617]
[1746018874810,0.23527424,1762.9,1762.6,9.7064]
[1746018875003,0.23527424,1763.0,1762.7,6.9734]
[1746018875215,1.13409,1763.1,1762.8,4.838]
[1746018875420,1.13414,1763.0,1762.9,3.492]
[1746018875610,0.23527424,1763.2,1762.9,3.492]
[1746018875611,3.91337424,1763.2,1762.9,3.492]
[1746018875806,5.04744424,1763.2,1762.9,3.492]
[1746018876005,3.2078,1763.1,1762.9,4.62618]
[1746018876212,3.2078,1763.1,1763.0,1.13414]
[1746018876511,3.2078,1763.1,1763.0,4.62614]
[1746018876908,5.04743424,1763.2,1763.1,1.13408]
[1746018877103,5.04743424,1763.2,1763.0,3.492]
[1746018877104,1.36935424,1763.1,1763.0,3.492]
[1746018877309,0.23527424,1763.0,1762.8,4.838]
[1746018877511,0.23527424,1763.0,1762.9,1.13421]
[1746018877708,0.23527424,1763.0,1762.9,4.63881]
[1746018877907,1.36941424,1763.0,1762.9,4.63881]
[1746018878107,0.23527424,1763.0,1762.9,4.63881]
[1746018878307,0.23527424,1763.0,1762.8,4.838]
[1746018878507,7.88241,1762.9,1762.8,4.838]
[1746018878715,8.11768424,1762.9,1762.8,4.838]
[1746018879213,16.82247424,1762.9,1762.3,3.2078]
[1746018879416,0.23527424,1762.0,1761.2,3.5046]
[1746018879609,3.44307424,1761.8,1761.4,2.83794]
[1746018879809,0.23527424,1762.1,1761.7,2.83745]
[1746018880116,0.23527424,1762.1,1762.0,1.13478]
[1746018880321,0.23527424,1762.1,1762.0,5.97378]
[1746018880816,1.36994424,1762.2,1762.0,5.97378]
[1746018881004,4.57774424,1762.2,1762.1,3.5222]
[1746018881210,3.44307424,1762.2,1762.1,3.5222]
[1746018881510,4.57773424,1762.2,1762.1,3.5222]
[1746018881909,4.57773424,1762.2,1762.1,8.3612]
[1746018882514,3.44307424,1762.2,1762.1,9.49592]
[1746018883012,8.03845424,1762.2,1762.1,4.839]
[1746018883211,4.57775424,1762.2,1762.1,4.839]
[1746018883908,4.57775424,1762.2,1762.1,8.1786]
[1746018885312,0.23527424,1761.8,1761.1,3.2078]
[1746018885513,2.83713,1761.9,1761.0,4.96374264]
[1746018885514,0.23527424,1761.1,1761.0,4.96374264]
[1746018885704,1.37063424,1761.1,1761.0,0.00574264]
[1746018885909,4.90843424,1761.1,1761.0,0.00574264]
[1746018886415,4.90843424,1761.1,1761.0,40.80574264]
[1746018886715,4.90843424,1761.1,1761.0,49.16134264]
[1746018886916,1.1356,1760.8,1760.7,4.958]
[1746018887108,3.44307424,1760.9,1760.8,1.13556]
[1746018887308,3.44307424,1760.9,1760.8,41.93556]
[1746018887309,0.23527424,1760.9,1760.8,41.93556]
[1746018887512,0.23527424,1761.0,1760.9,1.13549]
[1746018887710,0.23527424,1761.0,1760.9,4.53309]
[1746018887913,1.37070424,1761.0,1760.9,8.3566]
[1746018888419,0.23527424,1761.0,1760.9,9.49209]
[1746018888620,3.2078,1761.1,1761.0,1.13543]
[1746018888914,0.23527424,1761.4,1761.3,1.13524]
[1746018889116,0.23527424,1761.4,1761.3,6.09424]
[1746018889315,1.37044424,1761.4,1761.3,45.759]
[1746018889513,5.04544424,1761.4,1761.3,4.959]
[1746018889823,5.04548424,1761.4,1761.0,3.3727]
[1746018890018,3.44307424,1761.2,1761.1,46.89436]
[1746018890318,4.57837424,1761.2,1761.1,45.759]
[1746018890911,3.44307424,1761.2,1761.1,41.93536]
[1746018891115,3.44307424,1761.2,1760.9,3.5937]
[1746018891310,9.01024044,1761.8,1760.9,6.09549]
[1746018891311,3.44307424,1761.0,1760.9,6.09549]
[1746018891712,0.23527424,1761.2,1760.9,51.89549]
[1746018891914,0.23527424,1761.5,1761.0,2.83851]
[1746018892117,0.23527424,1761.4,1761.3,1.13524]
[1746018892314,9.01024044,1761.8,1761.7,1.13498]
[1746018892315,5.33564044,1761.8,1761.7,1.13498]
[1746018892521,5.57091468,1761.8,1761.7,6.09498]
[1746018892823,4.11649044,1761.8,1761.7,14.30278]
[1746018893021,0.23527424,1761.9,1761.7,14.30278]
[1746018893022,0.23527424,1761.9,1761.8,1.13491]
[1746018893316,0.23527424,1762.2,1762.1,1.13472]
[1746018893513,0.23527424,1762.2,1762.1,6.09472]
[1746018894422,7.51189763,1762.3,1762.2,1.13466]
[1746018894611,9.10143098,1762.5,1762.4,1.13453]
[1746018894817,9.10143098,1762.5,1762.4,4.34233]
[1746018894818,7.60645881,1762.5,1762.4,4.34233]
[1746018895019,6.09856457,1762.5,1762.4,9.34233]
[1746018895219,7.0169,1763.3,1762.7,5.67149]
[1746018895220,0.23527424,1763.3,1762.7,5.67149]
[1746018895415,1.36899424,1763.7,1763.1,3.2078]
[1746018895721,0.23527424,1763.5,1763.2,45.76]
[1746018895916,0.23527424,1763.5,1763.2,48.9678]
[1746018896113,0.23527424,1763.4,1763.2,45.76]
[1746018896314,3.4771,1763.3,1763.2,46.89401]
[1746018896713,3.4771,1763.3,1763.2,45.76]
[1746018896714,3.71237424,1763.3,1763.2,45.76]
[1746018896916,8.71237424,1763.3,1762.6,4.34216]
[1746018897113,0.23527424,1763.0,1762.7,4.958]
[1746018897310,0.23527424,1763.0,1762.7,6.09233]
[1746018897311,0.23527424,1762.8,1762.7,6.09233]
[1746018897512,1.36954424,1762.8,1762.7,45.758]
[1746018898019,8.44307424,1762.8,1762.6,4.958]
[1746018898219,3.71237424,1762.7,1762.2,72.89661]
[1746018898415,0.23527424,1762.7,1762.6,1.1344]
[1746018898616,0.23527424,1762.8,1762.5,4.958]
[1746018898918,1.36967424,1762.6,1762.5,4.958]
[1746018899114,1.36986424,1762.3,1762.2,75.018]
[1746018899317,0.23527424,1762.4,1762.2,4.958]
[1746018899516,4.89306424,1762.3,1762.2,4.958]
[1746018899715,3.75847424,1762.3,1762.2,46.89266]
[1746018899915,3.75847424,1762.3,1762.2,6.09266]
[1746018900211,0.23527424,1762.6,1762.2,4.958]
[1746018900521,0.23527424,1762.2,1761.9,3.2078]
[1746018900724,0.23527424,1761.8,1761.7,46.89298]
[1746018901027,0.23527424,1761.9,1761.7,45.758]
[1746018901324,994.4963,1769.7,1761.7,45.758]
[1746018901325,0.23527424,1762.5,1762.0,2.83697]
[1746018901519,0.23527424,1762.3,1762.2,1.13461]
[1746018901822,1.13456,1762.4,1762.2,1.13463]
[1746018902022,0.23527424,1762.3,1762.2,1.13463]
[1746018902220,1.13461,1762.3,1762.1,9.30047]
[1746018902422,1.13488,1761.9,1761.7,44.0078]
[1746018902717,0.23527424,1761.9,1761.8,1.13491]
[1746018902920,0.23527424,1762.6,1761.9,2.83706]
[1746018903124,9.43399,1762.7,1762.3,1.13459]
[1746018903125,0.23527424,1762.4,1762.3,1.13459]
[1746018903323,0.23527424,1762.4,1762.3,6.09259]
[1746018903522,0.23527424,1762.6,1762.5,1.13446]
[1746018904025,0.23527424,1762.7,1762.4,8.01879]
[1746018904320,1.1347,1762.2,1761.8,9.60952]
[1746018904520,0.23527424,1762.1,1762.0,4.34254]
[1746018904716,0.23527424,1762.4,1762.0,3.2078]
[1746018904910,0.23527424,1762.4,1762.1,4.958]
[1746018905113,2.83737,1761.8,1761.2,3.2078]
[1746018905415,0.23527424,1761.4,1761.3,4.958]
[1746018905724,0.23527424,1761.6,1761.5,1.13511]
[1746018906032,0.23527424,1761.9,1761.5,1.13511]
[1746018906223,1.37019424,1761.8,1761.7,1.13495]
[1746018906525,3.44307424,1762.2,1761.7,2.83731]
[1746018906713,3.5458,1762.1,1761.8,6.7319]
[1746018906917,0.23527424,1762.2,1762.0,1.13477]
[1746018907220,3.44307424,1762.1,1761.6,4.958]
[1746018907525,1.37025424,1761.7,1761.6,4.958]
[1746018907922,0.23527424,1761.7,1761.6,6.09304]
[1746018908118,0.23527424,1761.9,1761.6,8.4297]
[1746018908323,4.90275424,1761.7,1761.6,4.958]
[1746018908724,1.13511,1761.5,1761.4,8.4297]
[1746018908919,0.23527424,1761.3,1760.8,76.6922]
[1746018909127,1.13532,1761.2,1761.0,11.6385]
[1746018909322,1.37063424,1761.1,1760.9,1.13548]
[1746018909525,1.37076424,1760.9,1760.8,74.998]
[1746018909723,0.23527424,1760.9,1760.8,6.09456]
[1746018909921,0.23527424,1761.1,1760.8,50.759]
[1746018910225,0.23527424,1760.9,1760.5,3.2078]
[1746018910526,0.23527424,1760.1,1759.7,26.10821827]
[1746018910717,4.57921424,1759.9,1759.8,0.22914778]
[1746018910926,4.57921424,1759.9,1759.7,25.3711288]
[1746018910927,1.1362,1759.8,1759.7,25.3711288]
[1746018911223,1.80645238,1759.8,1759.7,66.1711288]
[1746018912023,2.26887316,1759.8,1759.7,24.1361288]
[1746018912320,5.63445238,1759.8,1759.7,11.0976888]
[1746018912518,11.09598852,1759.8,1759.7,8.9259288]
[1746018912716,5.63445238,1759.8,1759.7,8.9259288]
[1746018913022,4.26297814,1759.8,1759.7,90.4284988]
[1746018913221,3.2078,1760.7,1760.4,1.13577]
[1746018913429,0.02373361,1760.6,1760.5,6.09672]
[1746018913622,3.2078,1761.1,1760.5,23.0839]
[1746018913819,1.13569,1760.6,1760.5,3.5566]
[1746018914022,1.13569,1760.6,1760.5,44.3566]
[1746018914223,1.13569,1760.6,1760.5,40.8]
[1746018914420,3.2078,1760.7,1760.5,40.8]
[1746018914620,3.2078,1761.0,1760.5,31.12322576]
[1746018914824,3.2078,1760.7,1760.6,12.49419]
[1746018915026,3.2078,1760.7,1760.6,53.29419]
[1746018915226,3.2078,1760.7,1760.6,71.92322576]
[1746018915425,7.0358,1761.1,1761.0,1.13543]
[1746018915624,7.0358,1761.1,1761.0,8.3518]
[1746018915827,7.0358,1761.1,1760.6,16.55692576]
[1746018915828,17.1798,1761.1,1759.7,3.2078]
[1746018916028,17.1798,1761.1,1758.7,5.68452]
[1746018916029,3.2078,1760.0,1759.8,53.47234042]
[1746018916220,1.13614,1759.9,1759.8,40.8]
[1746018916423,4.3439,1760.0,1759.8,42.11384042]
[1746018916629,4.0404,1760.2,1760.0,1.13607]
[1746018916832,3.2078,1761.0,1760.6,1.31384042]
[1746018917132,1.13515,1761.5,1761.0,12.67234042]
[1746018917333,3.2078,1761.2,1761.1,6.28394042]
[1746018917537,2.2709,1761.4,1761.1,17.64244042]
[1746018917729,2.2709,1761.4,1761.3,12.67234042]
[1746018918037,21.28998368,1762.4,1761.6,13.80738042]
[1746018918038,0.2035,1762.2,1761.6,13.80738042]
[1746018918228,3.2078,1762.0,1761.6,5.145]
[1746018918431,15.66161524,1762.1,1762.0,1.31384042]
[1746018918736,1.13484,1762.0,1761.7,50.71934042]
[1746018918936,1.13478,1762.0,1761.9,1.31384042]
[1746018919136,1.13491,1761.8,1761.7,44.2605]
[1746018919336,3.828,1762.0,1761.9,1.31384042]
[1746018919641,4.96278,1762.0,1761.9,1.31384042]
[1746018919843,3.828,1762.0,1761.9,1.31384042]
[1746018920037,4.96278,1762.0,1761.9,4.88284042]
[1746018920332,4.96278,1762.0,1761.5,5.145]
[1746018920333,7.83704,1762.0,1761.5,5.145]
[1746018920537,1.13502,1761.7,1761.6,1.31384042]
[1746018920738,1.13498,1761.7,1761.6,40.8]
[1746018921042,3.2078,1761.8,1761.6,56.0363156]
[1746018921241,1.13498,1761.7,1761.6,42.11384042]
[1746018921450,1.13498,1761.7,1761.6,40.8]
[1746018921639,2.06408,1761.7,1761.6,40.8]
[1746018921835,4.2851,1761.9,1761.6,21.5153556]
[1746018922145,9.39285,1761.9,1761.8,1.31384042]
[1746018922445,1.13491,1761.8,1761.7,6.45784042]
[1746018922842,8.258,1761.9,1761.7,26.5152556]
[1746018923037,8.258,1761.9,1761.8,12.67234042]
[1746018923242,8.258,1761.9,1761.8,17.81634042]
[1746018923441,1.13462,1762.3,1761.9,1.13485]
[1746018923642,3.2078,1762.4,1762.3,12.67234042]
[1746018923837,3.2078,1762.7,1762.4,1.1345]
[1746018924037,4.34201,1762.9,1762.8,1.31384042]
[1746018924239,4.34201,1762.9,1762.8,6.45784042]
[1746018924442,4.34201,1762.9,1762.8,17.81634042]
[1746018924640,3.58560895,1763.0,1762.8,17.81634042]
[1746018924842,12.17182239,1763.7,1762.9,14.5663]
[1746018925143,13.30551239,1763.7,1763.6,12.67234042]
[1746018925445,10.09771239,1763.7,1763.6,17.81634042]
[1746018925647,8.96402239,1763.7,1763.6,23.95010042]
[1746018926044,12.59122526,1763.9,1763.8,1.13363]
[1746018926243,12.59122526,1763.9,1763.8,17.01377042]
[1746018926547,7.17318806,1763.9,1763.8,26.02414042]
[1746018926742,8.30674806,1763.9,1763.8,26.02414042]
[1746018926947,8.30674806,1763.9,1763.8,17.67234042]
[1746018927143,7.17318806,1763.9,1763.8,22.81334042]
[1746018927344,7.17318806,1763.9,1763.8,27.15477042]
[1746018927539,5.85934764,1763.9,1763.8,25.84093]
[1746018927749,10.57138508,1764.1,1764.0,1.1335]
[1746018927950,10.57138508,1764.1,1764.0,61.4998]
[1746018928150,11.70481508,1764.1,1764.0,64.1943]
[1746018928452,10.57138508,1764.1,1764.0,69.3353]
[1746018928744,11.70481508,1764.1,1764.0,61.1275]
[1746018929054,10.57138508,1764.1,1764.0,70.4688]
[1746018929551,0.28343064,1764.4,1764.3,1.13331]
[1746018929749,0.28343064,1764.4,1764.3,6.67957556]
[1746018929942,3.2078,1765.0,1764.3,6.67957556]
[1746018929943,3.2078,1765.0,1764.5,1.13314]
[1746018930142,2.83199,1765.1,1764.6,5.139]
[1746018930446,2.83199,1765.1,1764.8,1.13298]
[1746018930447,1.13281,1765.1,1764.8,1.13298]
[1746018930758,1.13278,1765.2,1764.9,1.13292]
[1746018931050,1.13273,1765.2,1765.0,6.27184]
[1746018931258,1.13273,1765.2,1765.0,5.139]
[1746018931456,1.13273,1765.2,1765.1,5.139]
[1746018931652,1.13286,1765.0,1764.9,3.828]
[1746018931955,1.13284,1765.1,1764.9,8.967]
[1746018932252,1.13274,1765.2,1765.0,41.93282]
[1746018932454,1.13277,1765.2,1765.0,40.8]
[1746018932651,1.13279,1765.1,1765.0,40.8]